[Event "Titled Tuesday Blitz August 15 Early 2023"]
[White "Indjic, Aleksandar"]
[Black "maksimys18"]
[WhiteFideId "911925"]
[WhiteElo "3029"]
[BlackElo "2499"]
[Result "1-0"]
[Round "1"]
[TimeControl "180+1"]
[Date "2023.08.15"]
[WhiteClock "0:00:39"]
[BlackClock "0:00:07"]
[Board "14"]

1. e4 {[%clk 0:02:58]}  e6 {[%clk 0:02:59]} 2. d4 {[%clk 0:02:55]}  d5 {[%clk 0:02:58]} 3. Nc3 {[%clk 0:02:56]}  Bb4 {[%clk 0:02:52]} 4. e5 {[%clk 0:02:56]}  c5 {[%clk 0:02:48]} 5. Bd2 {[%clk 0:02:56]}  cxd4 {[%clk 0:02:45]} 6. Nb5 {[%clk 0:02:55]}  Qe7 {[%clk 0:02:20]} 7. a3 {[%clk 0:02:51]}  Bxd2+ {[%clk 0:02:17]} 8. Qxd2 {[%clk 0:02:52]}  Nc6 {[%clk 0:02:10]} 9. Nd6+ {[%clk 0:02:51]}  Kf8 {[%clk 0:02:10]} 10. f4 {[%clk 0:02:49]}  f6 {[%clk 0:02:09]} 11. Nf3 {[%clk 0:02:44]}  Nh6 {[%clk 0:02:06]} 12. Bb5 {[%clk 0:02:42]}  Nf7 {[%clk 0:02:03]} 13. Nxf7 {[%clk 0:02:39]}  Kxf7 {[%clk 0:02:03]} 14. O-O {[%clk 0:02:39]}  Rf8 {[%clk 0:01:58]} 15. b4 {[%clk 0:02:37]}  Kg8 {[%clk 0:01:57]} 16. Bd3 {[%clk 0:02:34]}  a6 {[%clk 0:01:53]} 17. Qe1 {[%clk 0:02:32]}  f5 {[%clk 0:01:50]} 18. Kh1 {[%clk 0:02:32]}  Bd7 {[%clk 0:01:50]} 19. Rg1 {[%clk 0:02:32]}  Be8 {[%clk 0:01:50]} 20. Qf2 {[%clk 0:02:27]}  Bh5 {[%clk 0:01:49]} 21. Nxd4 {[%clk 0:02:28]}  Nxd4 {[%clk 0:01:48]} 22. Qxd4 {[%clk 0:02:29]}  Rac8 {[%clk 0:01:47]} 23. a4 {[%clk 0:02:28]}  Kh8 {[%clk 0:01:42]} 24. b5 {[%clk 0:02:22]}  axb5 {[%clk 0:01:32]} 25. axb5 {[%clk 0:02:23]}  g5 {[%clk 0:01:31]} 26. Ra7 {[%clk 0:02:22]}  Rg8 {[%clk 0:01:29]} 27. fxg5 {[%clk 0:01:59]}  Rxg5 {[%clk 0:01:23]} 28. Qb6 {[%clk 0:01:59]}  Rcg8 {[%clk 0:01:03]} 29. Qxb7 {[%clk 0:01:49]}  Qxb7 {[%clk 0:01:03]} 30. Rxb7 {[%clk 0:01:50]}  Bf3 {[%clk 0:01:03]} 31. Bf1 {[%clk 0:01:50]}  Be4 {[%clk 0:01:02]} 32. Rc7 {[%clk 0:01:46]}  f4 {[%clk 0:01:02]} 33. h3 {[%clk 0:01:24]}  f3 {[%clk 0:00:59]} 34. g4 {[%clk 0:01:24]}  f2+ {[%clk 0:00:56]} 35. Rg2 {[%clk 0:01:25]}  h5 {[%clk 0:00:54]} 36. Kh2 {[%clk 0:01:17]}  Bxg2 {[%clk 0:00:53]} 37. Kxg2 {[%clk 0:01:17]}  hxg4 {[%clk 0:00:53]} 38. h4 {[%clk 0:01:16]}  Rxe5 {[%clk 0:00:46]} 39. b6 {[%clk 0:01:11]}  g3 {[%clk 0:00:39]} 40. Bd3 {[%clk 0:00:55]}  Rf8 {[%clk 0:00:36]} 41. b7 {[%clk 0:00:51]}  Ref5 {[%clk 0:00:06]} 42. Rc8 {[%clk 0:00:46]}  f1=Q+ {[%clk 0:00:05]} 43. Bxf1 {[%clk 0:00:47]}  Rf2+ {[%clk 0:00:06]} 44. Kh3 {[%clk 0:00:45]}  Rxf1 {[%clk 0:00:06]} 45. b8=Q {[%clk 0:00:45]}  Kg7 {[%clk 0:00:03]} 46. Rxf8 {[%clk 0:00:44]}  Rxf8 {[%clk 0:00:04]} 47. Qxg3+ {[%clk 0:00:44]}  Kf7 {[%clk 0:00:05]} 48. Qe5 {[%clk 0:00:43]}  Ke7 {[%clk 0:00:05]} 49. h5 {[%clk 0:00:43]}  Rf5 {[%clk 0:00:06]} 50. Qg7+ {[%clk 0:00:43]}  Kd6 {[%clk 0:00:06]} 51. h6 {[%clk 0:00:42]}  e5 {[%clk 0:00:06]} 52. h7 {[%clk 0:00:42]}  Kc5 {[%clk 0:00:06]} 53. h8=Q {[%clk 0:00:42]}  Kd4 {[%clk 0:00:07]} 54. c3+ {[%clk 0:00:40]}  Ke4 {[%clk 0:00:07]} 55. Qg4+ {[%clk 0:00:39]}  Rf4 {[%clk 0:00:07]} 56. Qh7+ {[%clk 0:00:39]}  Ke3 {[%clk 0:00:08]} 57. Qg3+ {[%clk 0:00:40]}  Rf3 {[%clk 0:00:08]} 58. Qh6+ {[%clk 0:00:40]}  Ke2 {[%clk 0:00:08]} 59. Qd2+ {[%clk 0:00:39]}  Kxd2 {[%clk 0:00:08]} 60. Qxf3 {[%clk 0:00:39]}  e4 {[%clk 0:00:09]} 61. Qf6 {[%clk 0:00:39]}  e3 {[%clk 0:00:08]} 62. Qd4+ {[%clk 0:00:40]}  Ke2 {[%clk 0:00:08]} 63. Qxd5 {[%clk 0:00:40]}  Kf1 {[%clk 0:00:07]} 64. Qf3+ {[%clk 0:00:39]}  Kg1 {[%clk 0:00:07]} 65. Qg2# {[%clk 0:00:39]} 1-0


[Site "https://www.chess.com"]

[Event "Titled Tuesday Blitz August 15 Early 2023"]
[White "Deac, Bogdan-Daniel"]
[Black "Mihailidis, Anastasios"]
[WhiteFideId "1226380"]
[BlackFideId "4205588"]
[WhiteElo "3018"]
[BlackElo "2495"]
[Result "1-0"]
[Round "1"]
[TimeControl "180+1"]
[Date "2023.08.15"]
[WhiteClock "0:00:09"]
[BlackClock "0:00:02"]
[Board "16"]

1. Nf3 {[%clk 0:03:00]}  d5 {[%clk 0:02:58]} 2. e3 {[%clk 0:02:59]}  Nf6 {[%clk 0:02:51]} 3. c4 {[%clk 0:02:59]}  e6 {[%clk 0:02:51]} 4. b3 {[%clk 0:03:00]}  Be7 {[%clk 0:02:50]} 5. Bb2 {[%clk 0:03:00]}  O-O {[%clk 0:02:50]} 6. g3 {[%clk 0:03:00]}  c5 {[%clk 0:02:45]} 7. Bg2 {[%clk 0:02:59]}  Nc6 {[%clk 0:02:45]} 8. O-O {[%clk 0:02:59]}  b6 {[%clk 0:02:37]} 9. Qe2 {[%clk 0:02:53]}  Bb7 {[%clk 0:02:35]} 10. Ne1 {[%clk 0:02:51]}  Qd7 {[%clk 0:02:33]} 11. f4 {[%clk 0:02:51]}  Ne8 {[%clk 0:02:28]} 12. Nc3 {[%clk 0:02:45]}  d4 {[%clk 0:02:23]} 13. Ne4 {[%clk 0:02:44]}  Nf6 {[%clk 0:02:18]} 14. Nf2 {[%clk 0:02:38]}  Rad8 {[%clk 0:01:57]} 15. e4 {[%clk 0:02:37]}  Ne8 {[%clk 0:01:57]} 16. e5 {[%clk 0:02:34]}  f5 {[%clk 0:01:55]} 17. exf6 {[%clk 0:02:27]}  Nxf6 {[%clk 0:01:45]} 18. Ned3 {[%clk 0:02:27]}  Bd6 {[%clk 0:01:42]} 19. Rae1 {[%clk 0:02:19]}  Rde8 {[%clk 0:01:40]} 20. Ne4 {[%clk 0:01:49]}  Nxe4 {[%clk 0:01:17]} 21. Bxe4 {[%clk 0:01:50]}  Nd8 {[%clk 0:01:09]} 22. Qg2 {[%clk 0:01:29]}  Bxe4 {[%clk 0:01:07]} 23. Rxe4 {[%clk 0:01:29]}  Nc6 {[%clk 0:01:01]} 24. Rfe1 {[%clk 0:01:25]}  Rf7 {[%clk 0:00:52]} 25. R4e2 {[%clk 0:01:07]}  Rfe7 {[%clk 0:00:51]} 26. Qe4 {[%clk 0:01:06]}  Kh8 {[%clk 0:00:47]} 27. Rf2 {[%clk 0:01:03]}  Rf7 {[%clk 0:00:33]} 28. Ref1 {[%clk 0:00:48]}  Ref8 {[%clk 0:00:31]} 29. Ne1 {[%clk 0:00:48]}  e5 {[%clk 0:00:20]} 30. f5 {[%clk 0:00:48]}  Rf6 {[%clk 0:00:20]} 31. Ng2 {[%clk 0:00:38]}  Ne7 {[%clk 0:00:20]} 32. g4 {[%clk 0:00:38]}  Qc6 {[%clk 0:00:20]} 33. d3 {[%clk 0:00:35]}  Qxe4 {[%clk 0:00:20]} 34. dxe4 {[%clk 0:00:36]}  Nc6 {[%clk 0:00:18]} 35. Ne1 {[%clk 0:00:32]}  R6f7 {[%clk 0:00:16]} 36. Bc1 {[%clk 0:00:31]}  Be7 {[%clk 0:00:14]} 37. g5 {[%clk 0:00:29]}  Rd8 {[%clk 0:00:14]} 38. h4 {[%clk 0:00:17]}  Kg8 {[%clk 0:00:11]} 39. Rf3 {[%clk 0:00:15]}  Nb4 {[%clk 0:00:10]} 40. a3 {[%clk 0:00:15]}  Nc6 {[%clk 0:00:10]} 41. Bd2 {[%clk 0:00:15]}  a6 {[%clk 0:00:10]} 42. Nd3 {[%clk 0:00:15]}  b5 {[%clk 0:00:10]} 43. Rc1 {[%clk 0:00:15]}  b4 {[%clk 0:00:07]} 44. axb4 {[%clk 0:00:15]}  Nxb4 {[%clk 0:00:08]} 45. Bxb4 {[%clk 0:00:14]}  cxb4 {[%clk 0:00:09]} 46. Ra1 {[%clk 0:00:13]}  Ra8 {[%clk 0:00:08]} 47. Nxe5 {[%clk 0:00:13]}  Rff8 {[%clk 0:00:08]} 48. Nd3 {[%clk 0:00:13]}  a5 {[%clk 0:00:08]} 49. Ra4 {[%clk 0:00:13]}  Rfc8 {[%clk 0:00:08]} 50. e5 {[%clk 0:00:12]}  Bc5 {[%clk 0:00:08]} 51. Kg2 {[%clk 0:00:12]}  Bb6 {[%clk 0:00:08]} 52. Kg3 {[%clk 0:00:12]}  Re8 {[%clk 0:00:09]} 53. Kf4 {[%clk 0:00:12]}  Bc7 {[%clk 0:00:07]} 54. Ke4 {[%clk 0:00:12]}  Ra7 {[%clk 0:00:06]} 55. f6 {[%clk 0:00:11]}  g6 {[%clk 0:00:06]} 56. Kxd4 {[%clk 0:00:09]}  Kf7 {[%clk 0:00:06]} 57. Ke4 {[%clk 0:00:08]}  Ra6 {[%clk 0:00:05]} 58. Rf1 {[%clk 0:00:07]}  Rae6 {[%clk 0:00:05]} 59. Kf3 {[%clk 0:00:07]}  Bxe5 {[%clk 0:00:05]} 60. Re1 {[%clk 0:00:05]}  Bc7 {[%clk 0:00:04]} 61. Rxe6 {[%clk 0:00:06]}  Rxe6 {[%clk 0:00:05]} 62. Nc5 {[%clk 0:00:06]}  Rc6 {[%clk 0:00:05]} 63. Ne4 {[%clk 0:00:06]}  Re6 {[%clk 0:00:04]} 64. Ra1 {[%clk 0:00:06]}  Ra6 {[%clk 0:00:04]} 65. Rd1 {[%clk 0:00:06]}  Ke6 {[%clk 0:00:03]} 66. Nc5+ {[%clk 0:00:05]}  Kf5 {[%clk 0:00:03]} 67. Nxa6 {[%clk 0:00:06]}  a4 {[%clk 0:00:04]} 68. Rd5+ {[%clk 0:00:06]}  Ke6 {[%clk 0:00:03]} 69. Nxc7+ {[%clk 0:00:06]}  Kf7 {[%clk 0:00:03]} 70. bxa4 {[%clk 0:00:07]}  b3 {[%clk 0:00:02]} 71. Rd7+ {[%clk 0:00:08]}  Kf8 {[%clk 0:00:02]} 72. Ne6+ {[%clk 0:00:08]}  Ke8 {[%clk 0:00:02]} 73. Re7# {[%clk 0:00:09]} 1-0


[Site "https://www.chess.com"]

[Event "Titled Tuesday Blitz August 15 Early 2023"]
[White "Baches Garcia, Guillermo"]
[Black "Shimanov, Aleksandr"]
[WhiteFideId "2209764"]
[BlackFideId "4198603"]
[WhiteElo "2493"]
[BlackElo "3013"]
[Result "0-1"]
[Round "1"]
[TimeControl "180+1"]
[Date "2023.08.15"]
[WhiteClock "0:00:04"]
[BlackClock "0:00:11"]
[Board "17"]

1. e4 {[%clk 0:03:00]}  c5 {[%clk 0:02:58]} 2. Nf3 {[%clk 0:03:00]}  e6 {[%clk 0:02:57]} 3. d4 {[%clk 0:02:59]}  cxd4 {[%clk 0:02:58]} 4. Nxd4 {[%clk 0:02:59]}  a6 {[%clk 0:02:59]} 5. h3 {[%clk 0:02:57]}  Nf6 {[%clk 0:02:56]} 6. Bd3 {[%clk 0:02:56]}  Qc7 {[%clk 0:02:50]} 7. O-O {[%clk 0:02:50]}  d6 {[%clk 0:02:43]} 8. c4 {[%clk 0:02:45]}  g6 {[%clk 0:02:36]} 9. Nc3 {[%clk 0:02:41]}  Bg7 {[%clk 0:02:36]} 10. Nf3 {[%clk 0:02:36]}  O-O {[%clk 0:02:35]} 11. Bf4 {[%clk 0:02:35]}  Rd8 {[%clk 0:02:34]} 12. Rc1 {[%clk 0:02:28]}  Nbd7 {[%clk 0:02:31]} 13. Bb1 {[%clk 0:02:20]}  Ne5 {[%clk 0:02:26]} 14. b3 {[%clk 0:02:11]}  b6 {[%clk 0:02:25]} 15. Qe2 {[%clk 0:02:03]}  Bb7 {[%clk 0:02:24]} 16. Rfd1 {[%clk 0:02:03]}  Rac8 {[%clk 0:02:21]} 17. Nxe5 {[%clk 0:01:58]}  dxe5 {[%clk 0:02:21]} 18. Bg5 {[%clk 0:01:57]}  Re8 {[%clk 0:02:13]} 19. f3 {[%clk 0:01:48]}  Nh5 {[%clk 0:02:13]} 20. Be3 {[%clk 0:01:45]}  Bc6 {[%clk 0:02:06]} 21. Nd5 {[%clk 0:01:37]}  exd5 {[%clk 0:01:54]} 22. cxd5 {[%clk 0:01:36]}  Qb7 {[%clk 0:01:54]} 23. dxc6 {[%clk 0:01:31]}  Rxc6 {[%clk 0:01:54]} 24. Rxc6 {[%clk 0:01:26]}  Qxc6 {[%clk 0:01:55]} 25. Qxa6 {[%clk 0:01:26]}  Nf4 {[%clk 0:01:35]} 26. Qxb6 {[%clk 0:01:19]}  Qc3 {[%clk 0:01:24]} 27. a4 {[%clk 0:00:52]}  Bh6 {[%clk 0:01:21]} 28. Bxf4 {[%clk 0:00:46]}  Bxf4 {[%clk 0:01:21]} 29. Kh1 {[%clk 0:00:43]}  Be3 {[%clk 0:01:03]} 30. Qb5 {[%clk 0:00:33]}  Rc8 {[%clk 0:01:02]} 31. Qd3 {[%clk 0:00:30]}  Qc5 {[%clk 0:00:56]} 32. Qd5 {[%clk 0:00:30]}  Qc3 {[%clk 0:00:52]} 33. Bd3 {[%clk 0:00:24]}  Qb2 {[%clk 0:00:40]} 34. Bc4 {[%clk 0:00:22]}  Rf8 {[%clk 0:00:40]} 35. a5 {[%clk 0:00:20]}  Qf2 {[%clk 0:00:40]} 36. Qd3 {[%clk 0:00:20]}  Bf4 {[%clk 0:00:40]} 37. Qf1 {[%clk 0:00:13]}  Qg3 {[%clk 0:00:40]} 38. Qg1 {[%clk 0:00:13]}  Kg7 {[%clk 0:00:22]} 39. a6 {[%clk 0:00:13]}  Ra8 {[%clk 0:00:21]} 40. Rd7 {[%clk 0:00:13]}  h5 {[%clk 0:00:20]} 41. Rxf7+ {[%clk 0:00:11]}  Kh6 {[%clk 0:00:21]} 42. a7 {[%clk 0:00:11]}  Rd8 {[%clk 0:00:21]} 43. Bd5 {[%clk 0:00:11]}  Rc8 {[%clk 0:00:21]} 44. a8=Q {[%clk 0:00:09]}  Rc1 {[%clk 0:00:10]} 45. Qh8+ {[%clk 0:00:07]}  Kg5 {[%clk 0:00:10]} 46. Qf6+ {[%clk 0:00:07]}  Kh6 {[%clk 0:00:11]} 47. Qg7+ {[%clk 0:00:07]}  Kg5 {[%clk 0:00:11]} 48. Rf5+ {[%clk 0:00:07]}  Kh4 {[%clk 0:00:11]} 49. Qf6+ {[%clk 0:00:06]}  g5 {[%clk 0:00:12]} 50. Qb6 {[%clk 0:00:04]}  Qh2# {[%clk 0:00:11]} 0-1


[Site "https://www.chess.com"]

[Event "Titled Tuesday Blitz August 15 Early 2023"]
[White "Paravyan, David"]
[Black "Shishkov, Andrei"]
[WhiteFideId "4194985"]
[BlackFideId "4500563"]
[WhiteElo "3009"]
[BlackElo "2492"]
[Result "1/2-1/2"]
[Round "1"]
[TimeControl "180+1"]
[Date "2023.08.15"]
[WhiteClock "0:01:09"]
[BlackClock "0:00:26"]
[Board "18"]

1. Nf3 {[%clk 0:02:59]}  Nf6 {[%clk 0:02:59]} 2. g3 {[%clk 0:02:58]}  b5 {[%clk 0:03:00]} 3. Bg2 {[%clk 0:02:56]}  Bb7 {[%clk 0:03:00]} 4. Na3 {[%clk 0:02:57]}  b4 {[%clk 0:03:00]} 5. Nc4 {[%clk 0:02:57]}  a5 {[%clk 0:03:01]} 6. O-O {[%clk 0:02:57]}  e6 {[%clk 0:03:01]} 7. a3 {[%clk 0:02:57]}  Be7 {[%clk 0:03:00]} 8. b3 {[%clk 0:02:54]}  O-O {[%clk 0:02:59]} 9. Bb2 {[%clk 0:02:55]}  d5 {[%clk 0:02:57]} 10. Nce5 {[%clk 0:02:55]}  Nbd7 {[%clk 0:02:57]} 11. axb4 {[%clk 0:02:54]}  axb4 {[%clk 0:02:56]} 12. Rxa8 {[%clk 0:02:55]}  Qxa8 {[%clk 0:02:56]} 13. Qa1 {[%clk 0:02:52]}  Qxa1 {[%clk 0:02:53]} 14. Rxa1 {[%clk 0:02:53]}  Ra8 {[%clk 0:02:53]} 15. Rxa8+ {[%clk 0:02:53]}  Bxa8 {[%clk 0:02:53]} 16. Nxd7 {[%clk 0:02:53]}  Nxd7 {[%clk 0:02:54]} 17. Ne5 {[%clk 0:02:52]}  Nxe5 {[%clk 0:02:53]} 18. Bxe5 {[%clk 0:02:53]}  c5 {[%clk 0:02:45]} 19. f4 {[%clk 0:02:48]}  f6 {[%clk 0:02:45]} 20. Bb2 {[%clk 0:02:48]}  Kf7 {[%clk 0:02:45]} 21. Kf2 {[%clk 0:02:48]}  Bc6 {[%clk 0:02:40]} 22. d3 {[%clk 0:02:46]}  Bd6 {[%clk 0:02:33]} 23. e4 {[%clk 0:02:46]}  Ke7 {[%clk 0:02:27]} 24. h4 {[%clk 0:02:43]}  h5 {[%clk 0:02:14]} 25. Bf3 {[%clk 0:02:37]}  g6 {[%clk 0:02:15]} 26. e5 {[%clk 0:02:20]}  fxe5 {[%clk 0:02:13]} 27. Bxe5 {[%clk 0:02:19]}  Bxe5 {[%clk 0:01:48]} 28. fxe5 {[%clk 0:02:20]}  Kd7 {[%clk 0:01:48]} 29. d4 {[%clk 0:01:34]}  c4 {[%clk 0:01:36]} 30. Ke3 {[%clk 0:01:30]}  c3 {[%clk 0:01:18]} 31. Be2 {[%clk 0:01:30]}  Ke7 {[%clk 0:01:18]} 32. Bd3 {[%clk 0:01:29]}  Kf7 {[%clk 0:01:17]} 33. Kf4 {[%clk 0:01:30]}  Kg7 {[%clk 0:01:03]} 34. Kg5 {[%clk 0:01:30]}  Be8 {[%clk 0:01:03]} 35. Be2 {[%clk 0:01:24]}  Bd7 {[%clk 0:00:56]} 36. Bf1 {[%clk 0:01:22]}  Ba4 {[%clk 0:00:48]} 37. Bd3 {[%clk 0:01:22]}  Be8 {[%clk 0:00:47]} 38. Be2 {[%clk 0:01:15]}  Ba4 {[%clk 0:00:44]} 39. Bd1 {[%clk 0:01:15]}  Bb5 {[%clk 0:00:42]} 40. g4 {[%clk 0:01:14]}  hxg4 {[%clk 0:00:38]} 41. Bxg4 {[%clk 0:01:14]}  Bd3 {[%clk 0:00:36]} 42. Bd1 {[%clk 0:01:10]}  Bf5 {[%clk 0:00:33]} 43. h5 {[%clk 0:01:10]}  gxh5 {[%clk 0:00:32]} 44. Kxh5 {[%clk 0:01:11]}  Kf7 {[%clk 0:00:29]} 45. Kh6 {[%clk 0:01:11]}  Be4 {[%clk 0:00:28]} 46. Bh5+ {[%clk 0:01:08]}  Ke7 {[%clk 0:00:28]} 47. Bd1 {[%clk 0:01:08]}  Kf7 {[%clk 0:00:28]} 48. Bh5+ {[%clk 0:01:09]}  Ke7 {[%clk 0:00:28]} 49. Bd1 {[%clk 0:01:09]}  Kf7 {[%clk 0:00:26]} 1/2-1/2


[Site "https://www.chess.com"]

[Event "Titled Tuesday Blitz August 15 Early 2023"]
[White "feuervogel1000000"]
[Black "Martinez Alcantara, Jose Eduardo"]
[BlackFideId "3805662"]
[WhiteElo "2488"]
[BlackElo "3006"]
[Result "0-1"]
[Round "1"]
[TimeControl "180+1"]
[Date "2023.08.15"]
[WhiteClock "0:00:01"]
[BlackClock "0:00:45"]
[Board "21"]

1. d4 {[%clk 0:03:00]}  Nf6 {[%clk 0:02:59]} 2. c4 {[%clk 0:03:00]}  e6 {[%clk 0:03:00]} 3. Nf3 {[%clk 0:02:59]}  Bb4+ {[%clk 0:02:59]} 4. Bd2 {[%clk 0:02:58]}  c5 {[%clk 0:02:59]} 5. Bxb4 {[%clk 0:02:58]}  cxb4 {[%clk 0:02:59]} 6. g3 {[%clk 0:02:58]}  b6 {[%clk 0:03:00]} 7. Bg2 {[%clk 0:02:58]}  Bb7 {[%clk 0:02:58]} 8. O-O {[%clk 0:02:57]}  a5 {[%clk 0:02:58]} 9. a3 {[%clk 0:02:58]}  Na6 {[%clk 0:02:58]} 10. Nbd2 {[%clk 0:02:55]}  O-O {[%clk 0:02:58]} 11. Re1 {[%clk 0:02:53]}  d6 {[%clk 0:02:58]} 12. e4 {[%clk 0:02:53]}  Qc7 {[%clk 0:02:58]} 13. e5 {[%clk 0:02:41]}  dxe5 {[%clk 0:02:58]} 14. dxe5 {[%clk 0:02:41]}  Nd7 {[%clk 0:02:58]} 15. Qe2 {[%clk 0:02:27]}  Nac5 {[%clk 0:02:57]} 16. Qe3 {[%clk 0:02:25]}  bxa3 {[%clk 0:02:55]} 17. Rxa3 {[%clk 0:02:24]}  Rad8 {[%clk 0:02:54]} 18. h4 {[%clk 0:02:24]}  h6 {[%clk 0:02:53]} 19. h5 {[%clk 0:02:24]}  Rfe8 {[%clk 0:02:50]} 20. Nf1 {[%clk 0:02:17]}  Nb8 {[%clk 0:02:43]} 21. N1h2 {[%clk 0:02:14]}  Bxf3 {[%clk 0:02:43]} 22. Bxf3 {[%clk 0:02:12]}  Qe7 {[%clk 0:02:36]} 23. Ng4 {[%clk 0:02:10]}  Qg5 {[%clk 0:02:35]} 24. Qxg5 {[%clk 0:02:06]}  hxg5 {[%clk 0:02:36]} 25. h6 {[%clk 0:02:06]}  Rd4 {[%clk 0:02:35]} 26. Kg2 {[%clk 0:01:57]}  Nbd7 {[%clk 0:02:31]} 27. Rh1 {[%clk 0:01:38]}  gxh6 {[%clk 0:02:31]} 28. Rxh6 {[%clk 0:01:27]}  Kg7 {[%clk 0:02:31]} 29. Rh5 {[%clk 0:01:28]}  Kf8 {[%clk 0:02:24]} 30. Rxg5 {[%clk 0:01:27]}  Ke7 {[%clk 0:02:25]} 31. Rg7 {[%clk 0:01:25]}  Rxc4 {[%clk 0:02:19]} 32. Re3 {[%clk 0:01:24]}  Rf8 {[%clk 0:02:18]} 33. Be2 {[%clk 0:01:18]}  Re4 {[%clk 0:02:15]} 34. Rxe4 {[%clk 0:01:15]}  Nxe4 {[%clk 0:02:16]} 35. Bb5 {[%clk 0:01:15]}  Nec5 {[%clk 0:02:15]} 36. f4 {[%clk 0:01:14]}  Rh8 {[%clk 0:02:12]} 37. Ne3 {[%clk 0:01:11]}  Kf8 {[%clk 0:02:09]} 38. Rg5 {[%clk 0:01:09]}  Ke7 {[%clk 0:02:10]} 39. Rg7 {[%clk 0:01:06]}  Kf8 {[%clk 0:01:50]} 40. Rg4 {[%clk 0:01:03]}  f5 {[%clk 0:01:45]} 41. exf6 {[%clk 0:00:56]}  Nxf6 {[%clk 0:01:45]} 42. Rg5 {[%clk 0:00:57]}  Nfe4 {[%clk 0:01:43]} 43. Re5 {[%clk 0:00:56]}  Nd6 {[%clk 0:01:44]} 44. Be2 {[%clk 0:00:53]}  Nf7 {[%clk 0:01:44]} 45. Rh5 {[%clk 0:00:52]}  Rg8 {[%clk 0:01:37]} 46. Kf3 {[%clk 0:00:51]}  Nd6 {[%clk 0:01:34]} 47. g4 {[%clk 0:00:47]}  Rg7 {[%clk 0:01:17]} 48. g5 {[%clk 0:00:44]}  Ke7 {[%clk 0:01:14]} 49. Ng4 {[%clk 0:00:43]}  Nf5 {[%clk 0:01:13]} 50. Bc4 {[%clk 0:00:37]}  b5 {[%clk 0:01:14]} 51. Ba2 {[%clk 0:00:33]}  Nd3 {[%clk 0:01:14]} 52. Ke4 {[%clk 0:00:29]}  Ng3+ {[%clk 0:01:11]} 53. Kxd3 {[%clk 0:00:29]}  Nxh5 {[%clk 0:01:12]} 54. Ke4 {[%clk 0:00:28]}  Rf7 {[%clk 0:01:10]} 55. Ne5 {[%clk 0:00:24]}  Rxf4+ {[%clk 0:01:11]} 56. Ke3 {[%clk 0:00:25]}  Rf5 {[%clk 0:01:11]} 57. Nc6+ {[%clk 0:00:23]}  Kd6 {[%clk 0:01:11]} 58. Nxa5 {[%clk 0:00:24]}  Rxg5 {[%clk 0:01:11]} 59. Bb1 {[%clk 0:00:25]}  Nf6 {[%clk 0:01:10]} 60. Bd3 {[%clk 0:00:20]}  Nd5+ {[%clk 0:01:10]} 61. Kd2 {[%clk 0:00:19]}  Rg2+ {[%clk 0:01:09]} 62. Kc1 {[%clk 0:00:19]}  b4 {[%clk 0:00:55]} 63. Nb3 {[%clk 0:00:12]}  Nf4 {[%clk 0:00:54]} 64. Bc4 {[%clk 0:00:11]}  e5 {[%clk 0:00:54]} 65. Nd2 {[%clk 0:00:10]}  Kc5 {[%clk 0:00:52]} 66. Bf1 {[%clk 0:00:07]}  Rh2 {[%clk 0:00:52]} 67. Kc2 {[%clk 0:00:03]}  Nd5 {[%clk 0:00:52]} 68. Kd3 {[%clk 0:00:03]}  Nf4+ {[%clk 0:00:50]} 69. Ke3 {[%clk 0:00:02]}  Kc6 {[%clk 0:00:48]} 70. Ne4 {[%clk 0:00:01]}  Rxb2 {[%clk 0:00:47]} 71. Bc4 {[%clk 0:00:02]}  Nd5+ {[%clk 0:00:45]} 72. Kd3 {[%clk 0:00:01]}  Rh2 {[%clk 0:00:45]} 73. Bxd5+ {[%clk 0:00:01]}  Kxd5 {[%clk 0:00:45]} 74. Nf6+ {[%clk 0:00:01]} 0-1


[Site "https://www.chess.com"]